bitfinex-derivatives/quotes_SOLF0:USTF0_20250817
["timestamp","ask_amount","ask_price","bid_price","bid_amount"]
[1755453462425,2.9,193.41,193.39,2.86]
[1755453464423,2.9,193.41,193.37,4.53442119]
[1755453464625,2.9,193.41,193.38,2.86]
[1755453465123,2.9,193.41,193.39,2.86]
[1755453467029,2.9,193.4,193.36,2.86]
[1755453467232,1.67442119,193.45,193.39,2.86]
[1755453467427,8.11490062,193.44,193.39,2.86]
[1755453467622,8.11490062,193.43,193.39,2.86]
[1755453467830,3.74927568,193.42,193.39,2.86]
[1755453468028,2.98,193.41,193.39,2.86]
[1755453471233,2.98,193.41,193.38,1.67442119]
[1755453471634,2.98,193.41,193.38,4.56442119]
[1755453472134,2.98,193.41,193.39,2.89]
[1755453473630,2.98,193.41,193.38,1.67442119]
[1755453474028,2.98,193.41,193.38,4.56442119]
[1755453474224,2.98,193.41,193.39,2.89]
[1755453475037,2.98,193.41,193.38,2.89]
[1755453475535,2.98,193.41,193.39,2.89]
[1755453477437,5.77182943,193.49,193.39,2.89]
[1755453477638,2.98,193.4,193.39,2.89]
[1755453489245,1.67442119,193.45,193.4,2.89]
[1755453489446,8.1173251,193.44,193.4,2.89]
[1755453489649,3.75429972,193.43,193.4,2.89]
[1755453489846,6.73429972,193.42,193.4,2.89]
[1755453490041,2.98,193.42,193.39,1.67442119]
[1755453490236,2.98,193.42,193.41,2.89]
[1755453490441,6.73474339,193.42,193.41,2.89]
[1755453490849,2.98,193.42,193.41,2.89]
[1755453491948,2.98,193.45,193.39,1.67442119]
[1755453492246,2.98,193.43,193.39,4.56442119]
[1755453492450,3.75668241,193.42,193.39,4.56442119]
[1755453492650,2.98,193.45,193.39,4.56442119]
[1755453492850,1.67442119,193.46,193.39,4.56442119]
[1755453492851,8.12217742,193.44,193.39,1.67442119]
[1755453493047,6.73668241,193.43,193.4,2.89]
[1755453493248,2.98,193.41,193.4,2.89]
[1755453494642,6.73834433,193.41,193.4,2.89]
[1755453501258,11.11709809,193.41,193.4,2.89]
[1755453506063,11.12069717,193.41,193.4,2.89]
[1755453506562,6.73834433,193.41,193.4,2.89]
[1755453506773,11.12217561,193.41,193.4,2.89]
[1755453514172,11.34191355,193.41,193.4,2.89]
[1755453514478,8.36191355,193.41,193.4,2.89]
[1755453514772,8.36191355,193.41,193.4,4.56442119]
[1755453514970,2.99,193.46,193.41,8.0275]
[1755453515177,2.99,193.46,193.45,1.67442119]
[1755453515369,2.99,193.46,193.45,4.53442119]
[1755453515868,2.99,193.46,193.45,2.86]
[1755453516067,2.99,193.46,193.45,4.53442119]
[1755453524685,5.77182943,193.52,193.45,1.67442119]
[1755453524882,2.99,193.5,193.46,2.86]
[1755453525079,2.99,193.48,193.46,2.86]
[1755453525279,2.99,193.48,193.45,4.53442119]
[1755453526889,8.04998257,193.47,193.45,2.86]
[1755453527087,6.73667319,193.46,193.45,2.86]
[1755453531487,5.77182943,193.54,193.45,2.86]
[1755453531694,2.77,193.5,193.49,2.99]
[1755453532082,6.51484008,193.5,193.49,2.99]
[1755453537195,2.77,193.5,193.49,2.99]
[1755453541098,2.77,193.49,193.36,10.3376]
[1755453541401,2.77,193.47,193.46,1.67442119]
[1755453541893,2.77,193.47,193.44,4.66442119]
[1755453543100,2.77,193.47,193.44,1.67442119]
[1755453544502,2.77,193.47,193.42,2.99]
[1755453544701,2.77,193.47,193.43,4.66442119]
[1755453547802,2.77,193.47,193.43,1.67442119]
[1755453547999,3.76276152,193.46,193.43,1.67442119]
[1755453548202,2.77,193.45,193.43,1.67442119]
[1755453548705,2.77,193.45,193.42,4.66442119]
[1755453551401,2.77,193.45,193.42,1.67442119]
[1755453551601,1.67442119,193.5,193.42,1.67442119]
[1755453551798,2.77,193.48,193.42,1.67442119]
[1755453552103,2.77,193.46,193.42,4.66442119]
[1755453552306,2.77,193.44,193.42,4.66442119]
[1755453552807,1.67442119,193.46,193.39,4.66442119]
[1755453553007,2.77,193.44,193.4,2.99]
[1755453553212,3.76530105,193.43,193.4,2.99]
[1755453553409,2.77,193.44,193.4,2.99]
[1755453553606,3.76531805,193.43,193.4,2.99]
[1755453553907,2.77,193.42,193.4,2.99]
[1755453555210,2.77,193.42,193.39,1.67442119]
[1755453555510,2.77,193.42,193.4,2.99]
[1755453555703,2.77,193.42,193.41,2.99]
[1755453555904,7.32488677,193.42,193.41,2.99]
[1755453556108,11.0906949,193.42,193.41,2.99]
[1755453558914,11.0906949,193.42,193.38,1.67442119]
[1755453559115,2.77,193.42,193.39,2.98]
[1755453559912,2.77,193.42,193.4,2.98]
[1755453560117,3.76665938,193.41,193.4,2.98]
[1755453560321,2.89,193.41,193.4,2.98]
[1755453562422,6.65569578,193.41,193.4,2.98]
[1755453564335,2.89,193.41,193.4,2.98]
[1755453581144,2.89,193.41,193.35,68.9341495]
[1755453581350,2.89,193.41,193.38,2.98]
[1755453584252,8.34970605,193.4,193.38,2.98]
[1755453584444,2.89,193.39,193.38,2.98]
[1755453595257,6.66105725,193.39,193.38,2.98]
[1755453596355,11.25421987,193.39,193.38,2.98]
[1755453597257,6.66105725,193.39,193.38,2.98]
[1755453597457,11.25507058,193.39,193.38,2.98]
[1755453600657,5.77182943,193.47,193.37,1.67442119]
[1755453600859,2.99,193.45,193.42,2.99]
[1755453601156,2.99,193.43,193.42,2.99]
[1755453601360,11.35005399,193.43,193.42,2.99]
[1755453603850,8.36005399,193.43,193.41,1.67442119]
[1755453604051,6.75490983,193.42,193.41,1.67442119]
[1755453604352,6.75490983,193.42,193.41,4.66442119]
[1755453605161,2.99,193.42,193.41,4.66442119]
[1755453605952,2.99,193.42,193.41,2.99]
[1755453606155,1.67442119,193.46,193.37,2.99]
[1755453606453,2.99,193.41,193.38,2.99]
[1755453606649,2.99,193.39,193.38,2.99]
[1755453607058,2.99,193.46,193.38,2.99]
[1755453607257,5.77182943,193.48,193.42,2.99]
[1755453607258,2.99,193.44,193.42,2.99]
[1755453607451,1.67442119,193.48,193.42,2.99]
[1755453607452,11.23328872,193.43,193.42,2.99]
[1755453607847,8.24328872,193.43,193.41,4.66442119]
[1755453608059,6.75123933,193.42,193.41,1.67442119]
[1755453608659,6.75123933,193.42,193.41,4.66442119]
[1755453610355,2.99,193.42,193.41,9.83202119]
[1755453611465,2.99,193.45,193.43,2.99]
[1755453611648,11.22965216,193.44,193.43,2.99]
[1755453612161,6.74951602,193.44,193.43,2.99]
[1755453612357,2.99,193.44,193.43,9.83142119]
[1755453612561,2.99,193.51,193.44,2.99]
[1755453612758,2.99,193.49,193.47,2.99]
[1755453612955,8.23798157,193.48,193.46,1.67442119]
[1755453613157,11.22798157,193.47,193.46,4.66442119]
[1755453614158,6.74871867,193.47,193.46,9.83062119]
[1755453614458,3.75871867,193.47,193.46,9.83062119]
[1755453614659,2.99,193.49,193.47,2.99]
[1755453614858,2.99,193.49,193.48,4.66442119]
[1755453615162,6.74585287,193.49,193.48,4.66442119]
[1755453615358,6.74585287,193.49,193.48,9.83012119]
[1755453616263,6.74585287,193.49,193.48,8.1557]
[1755453617166,5.77182943,193.57,193.49,5.1654]
[1755453617363,9.41404824,193.56,193.49,5.1654]
[1755453617563,2.97,193.54,193.46,2.61609446]
[1755453617767,8.12239113,193.53,193.49,2.61609446]
[1755453617963,6.72113568,193.52,193.51,2.79]
[1755453618763,6.72113568,193.52,193.49,2.61609446]
[1755453619066,2.97,193.52,193.5,2.79]
[1755453619966,2.97,193.52,193.48,2.79]
[1755453620561,2.97,193.52,193.46,5.40609446]
[1755453620768,2.97,193.5,193.47,2.79]
[1755453621157,2.97,193.5,193.48,2.79]
[1755453621358,2.97,193.5,193.47,5.166]
[1755453621756,2.97,193.5,193.48,2.79]
[1755453622260,2.61609446,193.58,193.33,10.3391]
[1755453622459,2.97,193.54,193.4,2.61609446]
[1755453622656,2.97,193.52,193.41,2.79]
[1755453622865,2.97,193.5,193.43,2.79]
[1755453623062,2.97,193.48,193.43,2.79]
[1755453623263,2.97,193.48,193.44,2.79]
[1755453623461,2.97,193.48,193.43,5.1669]
[1755453623661,2.97,193.48,193.45,2.79]
[1755453624157,2.97,193.48,193.43,2.79]
[1755453624364,2.97,193.48,193.44,2.79]
[1755453624764,2.97,193.48,193.4,2.61609446]
[1755453625065,2.97,193.48,193.45,2.79]
[1755453625468,2.97,193.48,193.44,5.1668]
[1755453625666,2.97,193.54,193.45,2.79]
[1755453625972,2.97,193.54,193.35,414.99818281]
[1755453625973,2.97,193.52,193.47,5.1658]
[1755453626173,2.97,193.5,193.48,2.79]
[1755453626372,2.97,193.49,193.48,2.79]
[1755453626780,2.97,193.54,193.49,2.79]
[1755453626960,2.97,193.52,193.49,2.79]
[1755453629175,3.70311286,193.51,193.43,5.40609446]
[1755453629371,2.97,193.49,193.43,2.61609446]
[1755453629674,2.97,193.49,193.44,2.79]
[1755453630069,2.97,193.49,193.44,5.1667]
[1755453630473,2.97,193.49,193.46,2.79]
[1755453632577,2.97,193.49,193.47,2.79]
[1755453634178,2.97,193.49,193.46,2.79]
[1755453634882,2.97,193.49,193.44,5.1668]
[1755453635080,2.97,193.49,193.45,2.79]
[1755453635783,2.97,193.49,193.36,2.79]
[1755453636074,2.97,193.47,193.41,2.79]
[1755453637176,2.97,193.47,193.39,2.79]
[1755453637482,2.97,193.45,193.39,2.79]
[1755453640187,2.97,193.45,193.4,2.79]
[1755453640387,2.97,193.45,193.41,2.79]
[1755453644893,2.61609446,193.51,193.39,5.168]
[1755453645095,2.97,193.47,193.36,2.79]
[1755453645293,2.97,193.45,193.36,2.79]
[1755453645497,2.97,193.43,193.36,2.79]
[1755453646894,2.97,193.43,193.41,2.79]
[1755453650997,5.77182943,193.51,193.38,2.61609446]
[1755453651302,2.82,193.49,193.41,2.91]
[1755453651496,2.61609446,193.52,193.43,5.167]
[1755453651497,2.82,193.47,193.43,5.167]
[1755453651702,3.70967512,193.46,193.43,5.167]
[1755453651900,2.82,193.45,193.44,2.91]
[1755453654303,2.82,193.45,193.41,5.1673]
[1755453654499,2.82,193.45,193.41,2.91]
[1755453654700,3.71035169,193.44,193.39,2.91]
[1755453654896,2.82,193.43,193.39,2.91]
[1755453655098,2.82,193.43,193.36,2.91]
[1755453655604,2.82,193.43,193.36,8.0787]
[1755453655903,3.71036217,193.42,193.36,8.0787]
[1755453656205,2.82,193.41,193.37,2.91]
[1755453658309,2.82,193.41,193.35,75.48337727]
[1755453658509,2.82,193.41,193.36,2.91]
[1755453658807,2.82,193.41,193.37,2.91]
[1755453660008,2.82,193.41,193.38,2.91]
[1755453660705,2.82,193.41,193.36,2.91]
[1755453660908,2.82,193.41,193.37,2.91]
[1755453661206,2.82,193.41,193.35,73.22427727]
[1755453661410,2.82,193.39,193.35,70.60818281]
[1755453661808,2.82,193.39,193.36,2.91]
[1755453662007,2.82,193.39,193.37,2.91]
[1755453663517,2.82,193.39,193.38,2.91]
[1755453666213,2.82,193.39,193.37,2.91]
[1755453671112,5.77182943,193.48,193.34,2.61609446]
[1755453671317,2.82,193.46,193.41,2.91]
[1755453671717,2.82,193.53,193.43,2.61609446]
[1755453671920,2.82,193.51,193.44,2.91]
[1755453672111,8.05742461,193.5,193.46,5.1662]
[1755453672309,2.82,193.48,193.47,2.91]
[1755453672719,47.3882779,193.55,193.47,8.076]
[1755453672923,2.82,193.53,193.48,2.91]
[1755453673222,2.82,193.51,193.48,2.91]
[1755453673524,2.82,193.49,193.48,2.91]
[1755453673719,2.82,193.49,193.46,7.78229446]
[1755453673913,2.82,193.49,193.47,2.91]
[1755453677216,2.82,193.48,193.46,7.78229446]
[1755453677817,2.82,193.48,193.47,2.85]
[1755453688329,2.82,193.48,193.47,8.016]
[1755453688829,2.82,193.48,193.47,2.85]
[1755453690331,2.82,193.48,193.47,8.016]
[1755453692027,2.96,193.54,193.48,2.85]
[1755453692233,2.96,193.54,193.5,2.85]
[1755453692635,2.96,193.56,193.52,2.61609446]
[1755453692827,2.96,193.56,193.54,5.164]
[1755453693030,2.96,193.56,193.54,8.014]
[1755453693635,2.96,193.56,193.54,2.85]
[1755453694033,2.96,193.56,193.53,5.1643]
[1755453694240,2.96,193.56,193.53,2.85]
[1755453701546,2.96,193.61,193.53,2.85]
[1755453701750,2.96,193.59,193.53,2.85]
[1755453701940,2.96,193.57,193.54,2.85]
[1755453703947,2.96,193.57,193.53,2.85]
[1755453704650,2.96,193.57,193.52,2.61609446]
[1755453705038,2.96,193.57,193.53,2.85]
[1755453707855,2.96,193.57,193.51,7.9448]
[1755453708147,2.96,193.57,193.52,2.78]
[1755453708950,3.62788343,193.56,193.47,2.61609446]
[1755453709149,2.75,193.55,193.48,2.78]
[1755453709946,2.75,193.55,193.49,5.1654]
[1755453710248,2.75,193.55,193.5,2.78]
[1755453710754,2.75,193.55,193.51,2.78]
[1755453711350,2.75,193.55,193.5,5.165]
[1755453711542,2.75,193.55,193.52,2.78]
[1755453712648,2.75,193.55,193.51,2.78]
[1755453713854,2.75,193.53,193.51,2.78]
[1755453715250,2.75,193.53,193.5,5.165]
[1755453715550,2.75,193.53,193.52,2.78]
[1755453715747,6.39072453,193.53,193.52,2.78]
[1755453716948,6.39072453,193.53,193.5,7.945]
[1755453717250,2.75,193.52,193.51,2.78]
[1755453720646,2.75,193.52,193.47,2.61609446]
[1755453720647,2.75,193.57,193.47,2.78]
[1755453720848,2.75,193.55,193.46,2.78]
[1755453721052,2.75,193.53,193.46,2.78]
[1755453721253,7.83090621,193.52,193.46,2.78]
[1755453721453,2.75,193.5,193.46,2.78]
[1755453722056,2.75,193.48,193.46,2.78]
[1755453723057,2.75,193.52,193.42,2.78]
[1755453723359,2.75,193.49,193.4,2.78]
[1755453723555,2.75,193.47,193.4,2.78]
[1755453723757,2.75,193.45,193.4,2.78]
[1755453724058,2.75,193.43,193.4,2.78]
[1755453724253,2.75,193.41,193.4,2.78]
[1755453728952,7.35619347,193.41,193.38,2.78]
[1755453729158,2.75,193.39,193.38,2.78]
[1755453729552,4.60717255,193.39,193.34,2.78]
[1755453729749,2.75,193.45,193.34,2.78]
[1755453729951,2.75,193.43,193.35,5.1691]
[1755453730150,4.60717568,193.42,193.35,5.1691]
[1755453730350,2.75,193.4,193.36,2.78]
[1755453730561,4.60717568,193.39,193.36,2.78]
[1755453730761,2.75,193.38,193.36,2.78]
[1755453732158,2.61609446,193.46,193.36,2.78]
[1755453732464,2.75,193.44,193.36,2.78]
[1755453732661,4.59758687,193.43,193.36,2.78]
[1755453732851,2.75,193.41,193.36,2.78]
[1755453734961,2.75,193.45,193.35,5.1691]
[1755453735266,8.21851115,193.44,193.36,2.78]
[1755453735458,2.75,193.42,193.36,2.78]
[1755453735659,4.59109592,193.41,193.36,2.78]
[1755453735861,2.75,193.4,193.34,2.78]
[1755453736358,2.75,193.4,193.32,5.1697]
[1755453736566,4.58483037,193.39,193.33,2.78]
[1755453736765,2.75,193.4,193.33,2.78]
[1755453736968,2.75,193.38,193.31,7.78619446]
[1755453737157,2.75,193.38,193.34,2.78]
[1755453738062,2.75,193.38,193.32,2.85]
[1755453739768,2.75,193.38,193.33,2.85]
[1755453751868,2.75,193.38,193.31,5.1702]
[1755453752062,2.75,193.38,193.32,2.85]
[1755453752372,2.75,193.38,193.33,1.67707361]
[1755453752675,2.75,193.38,193.34,2.85]
[1755453753874,2.97,193.39,193.34,2.85]
[1755453754078,2.97,193.37,193.34,2.85]
[1755453756578,2.97,193.37,193.32,1.67707361]
[1755453756778,2.97,193.37,193.33,2.85]
[1755453757183,2.97,193.37,193.34,2.85]
[1755453758280,4.58249465,193.36,193.35,2.85]
[1755453758577,2.97,193.36,193.35,2.85]
[1755453759677,7.55514336,193.36,193.35,2.85]
[1755453759872,2.97,193.35,193.33,2.85]
[1755453760079,2.97,193.35,193.31,2.85]
[1755453760590,4.58885921,193.34,193.31,2.85]
[1755453760785,2.97,193.35,193.31,2.85]
[1755453760976,4.58885921,193.34,193.31,2.85]
[1755453761176,4.58888029,193.33,193.31,2.85]
[1755453761378,7.55888029,193.32,193.31,2.85]
[1755453761776,2.97,193.31,193.28,4.52707361]
[1755453761979,4.59260871,193.3,193.28,2.85]
[1755453762183,1.67707361,193.34,193.28,2.85]
[1755453762184,2.97,193.29,193.28,2.85]
[1755453762384,2.97,193.29,193.27,2.85]
[1755453762582,2.97,193.29,193.28,2.85]
[1755453762782,7.5666233,193.29,193.28,2.85]
[1755453763886,2.97,193.28,193.26,1.67707361]
[1755453764086,2.97,193.28,193.27,2.85]
[1755453765285,4.60063675,193.28,193.27,2.85]
[1755453766088,7.57063675,193.28,193.27,2.85]
[1755453768987,7.57507578,193.28,193.27,2.85]
[1755453769985,4.60507578,193.28,193.27,7.793595]
[1755453770184,2.95,193.39,193.28,2.99]
[1755453770388,2.95,193.37,193.32,2.99]
[1755453770585,2.95,193.35,193.32,2.99]
[1755453771290,2.95,193.34,193.33,5.1694]
[1755453771886,2.95,193.34,193.33,2.99]
[1755453784298,2.95,193.34,193.33,4.66696266]
[1755453799399,2.95,193.34,193.33,1.67696266]
[1755453799600,2.93,193.38,193.33,2.9]
[1755453799800,11.23748389,193.37,193.36,4.57696266]
[1755453799992,11.23748389,193.37,193.24,125.42]
[1755453799993,11.23748389,193.37,193.34,4.57696266]
[1755453800198,2.93,193.35,193.34,4.57696266]
[1755453800398,7.58696658,193.35,193.34,4.57696266]
[1755453803907,4.65696658,193.35,193.34,4.57696266]
[1755453804101,2.93,193.37,193.35,2.9]
[1755453804301,4.6571454,193.36,193.35,2.9]
[1755453804496,7.5871454,193.36,193.35,2.9]
[1755453804901,2.93,193.36,193.35,2.9]
[1755453805695,4.65691366,193.36,193.35,2.9]
[1755453806105,7.58691366,193.36,193.35,2.9]
[1755453806908,2.93,193.36,193.35,2.9]
[1755453807607,7.58693986,193.36,193.35,2.9]
[1755453807807,2.93,193.35,193.34,1.67696266]
[1755453808002,2.93,193.35,193.25,8.6897627]
[1755453808307,2.93,193.36,193.33,1.67696266]
[1755453808611,2.93,193.44,193.36,1.67696266]
[1755453808805,10.33470681,193.47,193.39,1.67696266]
[1755453808806,9.60077471,193.43,193.39,1.67696266]
[1755453809111,2.93,193.41,193.4,2.9]
[1755453809306,11.23827476,193.41,193.4,2.9]
[1755453809709,11.23827476,193.41,193.39,1.67696266]
[1755453809908,11.23827476,193.4,193.39,1.67696266]
[1755453813508,11.23827476,193.4,193.38,2.9]
[1755453813509,2.93,193.39,193.37,1.67696266]
[1755453813806,7.58750935,193.38,193.37,1.67696266]
[1755453814008,2.93,193.38,193.37,2.9]
[1755453814204,7.38054925,193.38,193.37,4.57696266]
[1755453814410,11.03400124,193.38,193.37,4.57696266]
[1755453814614,2.93,193.37,193.35,4.57696266]
[1755453814807,2.93,193.37,193.27,8.6897627]
[1755453814808,2.93,193.37,193.33,2.9]
[1755453815006,2.93,193.37,193.18,15.5209]
[1755453815007,2.93,193.35,193.26,2.9]
[1755453815205,2.93,193.35,193.31,1.67696266]
[1755453815607,2.93,193.35,193.33,2.9]
[1755453816605,2.93,193.35,193.32,2.9]
[1755453817512,2.93,193.35,193.31,1.71439363]
[1755453817717,2.93,193.35,193.33,2.9]
[1755453818614,2.93,193.33,193.32,2.9]
[1755453822613,2.93,193.33,193.31,0.03743097]
[1755453822916,12.72983892,193.32,193.31,0.03743097]
[1755453823114,14.02281089,193.32,193.31,0.03743097]
[1755453823316,5.33192209,193.32,193.25,4.57696266]
[1755453823618,8.12146666,193.31,193.3,0.03893719]
[1755453824019,3.65495943,193.31,193.3,0.03893719]
[1755453824219,12.34452178,193.31,193.3,0.03893719]
[1755453824525,12.342697,193.31,193.3,0.03893719]
[1755453825421,12.342697,193.31,193.21,2.62264106]
[1755453825422,9.412697,193.31,193.22,2.9]
[1755453825633,2.93,193.29,193.22,2.9]
[1755453825818,2.93,193.27,193.22,2.9]
[1755453826827,0.03581287,193.26,193.22,2.9]
[1755453827024,0.03581287,193.26,193.19,68.92293644]
[1755453827025,2.93,193.25,193.2,2.9]
[1755453827922,2.93,193.25,193.19,68.92293644]
[1755453828129,2.93,193.25,193.21,3.05]
[1755453830329,2.93,193.25,193.15,3.05]
[1755453830531,2.77,193.23,193.15,3.05]
[1755453830722,2.77,193.21,193.12,3.05]
[1755453831224,2.80536496,193.21,193.12,3.05]
[1755453831423,2.80536496,193.21,193.15,3.05]
[1755453831822,2.77,193.21,193.15,3.05]
[1755453832130,0.03890865,193.2,193.15,3.05]
[1755453832320,2.77,193.19,193.15,3.05]
[1755453832725,2.77,193.18,193.15,3.05]
[1755453832926,0.03890865,193.2,193.15,3.05]
[1755453833123,0.03890865,193.2,193.19,5.1734]
[1755453833327,0.03890865,193.2,193.19,8.2234]
[1755453833527,0.03890865,193.2,193.19,3.05]
[1755453836535,2.80890865,193.2,193.19,3.05]
[1755453837134,0.03890865,193.2,193.19,3.05]
[1755453837724,2.80890865,193.2,193.16,2.62264106]
[1755453837929,2.80890865,193.2,193.18,3.05]
[1755453840637,2.77,193.19,193.18,3.05]
[1755453841634,0.03890865,193.2,193.18,3.05]
[1755453841838,2.77,193.32,193.2,3.05]
[1755453842039,2.77,193.3,193.23,3.05]
[1755453842637,2.77,193.3,193.12,125.92]
[1755453842840,2.62264106,193.27,193.08,348.36098254]
[1755453843031,2.77,193.23,193.1,2.62264106]
[1755453843227,2.77,193.23,193.19,0.03925692]
[1755453843627,2.77,193.23,193.13,3.05]
[1755453843831,2.77,193.2,193.19,0.03597955]
[1755453844036,2.77,193.2,193.11,3.05]
[1755453844338,2.80873807,193.2,193.11,3.05]
[1755453845339,2.80873807,193.2,193.11,5.67264106]
[1755453845532,2.80873807,193.2,193.11,2.62264106]
[1755453845730,2.80873807,193.2,193.14,2.62264106]
[1755453845934,0.03873807,193.2,193.15,3.05]
[1755453846129,2.77,193.19,193.15,3.05]
[1755453846633,2.80329149,193.19,193.15,3.05]
[1755453846842,2.77,193.17,193.16,3.05]
[1755453847035,0.03329149,193.19,193.16,3.05]
[1755453847241,2.77,193.18,193.14,2.62264106]
[1755453847440,2.77,193.18,193.17,3.05]
[1755453847933,0.03329149,193.19,193.17,3.05]
[1755453848138,2.80329149,193.19,193.09,3.05]
[1755453848338,2.80329149,193.19,193.15,3.05]
[1755453848640,2.80329149,193.19,193.16,3.05]
[1755453848842,2.80329149,193.19,193.17,3.05]
[1755453849037,0.03329149,193.19,193.15,3.05]
[1755453849233,0.03329149,193.19,193.16,5.174]
[1755453849435,0.03329149,193.19,193.17,3.05]
[1755453849643,2.80329149,193.19,193.16,5.174]
[1755453849943,2.77,193.18,193.17,3.05]
[1755453850440,2.77,193.18,193.14,2.62264106]
[1755453850639,2.77,193.18,193.12,3.05]
[1755453851441,0.03766928,193.17,193.12,3.05]
[1755453851640,0.03766928,193.17,193.03,127.00113419]
[1755453851641,2.77,193.16,193.13,3.05]
[1755453851836,2.77,193.16,193.1,3.05]
[1755453852445,0.03491737,193.15,193.1,3.05]
[1755453853038,2.77,193.14,193.1,3.05]
[1755453853236,2.77,193.14,193.05,2.62264106]
[1755453853442,2.77,193.14,193.06,3.05]
[1755453853641,5.39264106,193.14,193.06,3.05]
[1755453853847,2.77,193.13,193.04,3.05]
[1755453854047,0.0334438,193.12,193.04,3.05]
[1755453854245,2.77,193.11,193.02,3.05]
[1755453854546,2.77,193.1,193.02,3.05]
[1755453854946,0.03722866,193.08,193.02,3.05]
[1755453855147,2.77,193.07,192.97,347.68]
[1755453855350,2.77,193.07,192.98,3.05]
[1755453855542,2.77,193.05,192.94,3.05]
[1755453855944,2.77,193.03,192.94,3.05]
[1755453856540,2.77,193.03,192.93,2.62264106]
[1755453856541,2.77,193.03,192.92,3.05]
[1755453856745,2.77,193.03,192.96,3.05]
[1755453856945,2.77,193.03,192.93,3.05]
[1755453857150,2.77,193.03,192.94,3.05]
[1755453857347,0.03650945,193.01,192.94,3.05]
[1755453857543,2.77,193.0,192.94,3.05]
[1755453858348,2.81,192.99,192.97,2.98]
[1755453858551,2.81,192.98,192.97,2.98]
[1755453859548,2.81,192.97,192.96,2.98]
[1755453860142,2.81,192.97,192.93,2.62264106]
[1755453860352,2.81,192.97,192.92,2.62264106]
[1755453860548,2.81,193.0,192.93,8.1604]
[1755453860744,2.81,193.0,192.94,2.98]
[1755453860945,0.03286714,192.96,192.95,5.1798]
[1755453861145,0.03286714,192.96,192.95,8.1598]
[1755453861345,2.81,193.0,192.95,5.60264106]
[1755453861545,2.62264106,193.07,192.97,2.98]
[1755453861746,2.81,192.98,192.97,2.98]
[1755453862247,2.81,192.97,192.96,2.98]
[1755453865153,2.81,192.97,192.85,15.5469]
[1755453865352,2.81,192.97,192.93,2.62264106]
[1755453865548,2.81,192.97,192.94,2.98]
[1755453865742,2.81,193.06,192.95,2.98]
[1755453865947,0.03405494,192.97,192.94,2.98]
[1755453866347,2.81,192.99,192.95,2.98]
[1755453866548,0.03898874,192.97,192.95,2.98]
[1755453866945,0.03898874,192.97,192.94,5.1799]
[1755453867146,2.84898874,192.97,192.96,2.98]
[1755453867757,2.84898874,192.97,192.94,2.98]
[1755453867957,2.84898874,192.97,192.95,2.98]
[1755453868450,0.03898874,192.97,192.96,2.98]
[1755453868959,2.84898874,192.97,192.96,2.98]